Workbook

Sheet Примерное меню на 2 недели
H1: Утверждаю:
H2: Директор ООО "Эдем"
H3: _________Сафина Г.Т.
A5: Примерное двухнедельное меню для организации питания детей в дошкольных организациях с 10 часовым прибыванием детей
A7: Наименование | B7: Номер рецептуры по сборнику | C7: Выход блюд, в гр. | E7: Белки | G7: Жиры | I7: Углеводы | K7: Энергетическая ценность | M7: Витамин С
C8: 1-3 года | D8: 3- 7 лет | E8: 1-3 года | F8: 3- 7 лет | G8: 1-3 года | H8: 3- 7 лет | I8: 1-3 года | J8: 3- 7 лет | K8: 1-3 года | L8: 3- 7 лет | M8: 1-3 года | N8: 3- 7 лет
A9: День 1/ Понедельник 1 неделя
A10: Завтрак
A11: Суп молочный с крупой (пшенный) | B11: 101 | C11: 150 | D11: 180 | E11: 5.41 | F11: 6.99 | G11: 4.41 | H11: 5.7 | I11: 12.52 | J11: 16.01 | K11: 105.89 | L11: 128.76 | M11: 1.36 | N11: 1.63
A12: Какао с молоком | B12: 416 | C12: 150 | D12: 200 | E12: 3.06 | F12: 4.08 | G12: 2.96 | H12: 3.94 | I12: 12.47 | J12: 16.6 | K12: 87.6 | L12: 116.8 | M12: 1.07 | N12: 1.42
A13: Бутерброд с маслом | B13: 1 | C13: 40/10 | D13: 50/10 | E13: 2.91 | F13: 3.62 | G13: 5.88 | H13: 5.97 | I13: 17.43 | J13: 21.8 | K13: 143 | L13: 164.33 | M13: 0 | N13: 0
A14: Итого: | E14: =E13+E12+E11 -> 11.38 | F14: 14.69 | G14: 13.25 | H14: 15.61 | I14: 42.42 | J14: 54.41 | K14: 336.49 | L14: 409.89 | M14: 2.43 | N14: 3.05
A15: 2-ой завтрак
A16: Кисломолочный продукт | B16: 420 | C16: 120 | D16: 150 | E16: 3.12 | F16: 3.9 | G16: 3 | H16: 3.75 | I16: 4.8 | J16: 6 | K16: 52.92 | L16: 66.15 | M16: 0 | N16: 0
A17: Фрукт | C17: 85 | D17: 85 | E17: 1.44 | F17: 1.44 | G17: 0.17 | H17: 0.17 | I17: 6.88 | J17: 6.88 | K17: 32.13 | L17: 32.13 | M17: 51 | N17: 51
A18: Итого: | E18: =E17+E16 -> 4.56 | F18: 5.34 | G18: 3.17 | H18: 3.92 | I18: 11.68 | J18: 12.88 | K18: 85.05 | L18: 98.28 | M18: 51 | N18: 51
A19: Обед
A20: Томаты свежие | B20: 15 | C20: 40 | D20: 60 | E20: 0.44 | F20: 0.67 | G20: 2.18 | H20: 3.64 | I20: 4.64 | J20: 7.35 | K20: 40.1 | L20: 64.95 | M20: 1.72 | N20: 2.61
A21: Борщ с капустой и картофелем со сметаной на мкб | B21: 63 | C21: 180/10/7 | D21: 200/12/8 | E21: 4.69 | F21: 5.23 | G21: 4.51 | H21: 5.03 | I21: 7.17 | J21: 9.58 | K21: 117.34 | L21: 136.82 | M21: 11.22 | N21: 14.3
A22: Картофельное пюре | B22: 339 | C22: 100 | D22: 130 | E22: 2.28 | F22: 2.96 | G22: 3.77 | H22: 4.72 | I22: 13.92 | J22: 18.09 | K22: 104.96 | L22: 128.3 | M22: 18.2 | N22: 21.87
A23: Котлета мясная (Ясли) | B23: 299 | C23: 50 | E23: 8.36 | G23: 6.44 | I23: 6.7 | K23: 114.37 | M23: 0.4
A24: Сосиски отварные (сад) | B24: 291 | D24: 50 | F24: 8.83 | H24: 8.66 | J24: 10.98 | L24: 170 | N24: 0
A25: Хлеб ржано -пшеничный | C25: 30 | D25: 50 | E25: 1.91 | F25: 3.19 | G25: 0.24 | H25: 0.4 | I25: 12.43 | J25: 20.71 | K25: 52.61 | L25: 87.68 | M25: 0 | N25: 0
A26: Кисель | C26: 120 | D26: 150 | E26: 0 | F26: 0 | G26: 0 | H26: 0 | I26: 19.44 | J26: 24.3 | K26: 61.98 | L26: 87.48 | M26: 0 | N26: 0
A27: Итого: | E27: =E20+E21+E22+E23+E24+E25+E26 -> 17.68 | F27: 20.88 | G27: 17.14 | H27: 22.45 | I27: 64.3 | J27: 91.01 | K27: 491.36 | L27: 675.23 | M27: 31.54 | N27: 38.78
A28: Полдник
A29: Булочка с повидлом | C29: 60 | D29: 60 | E29: 5.11 | F29: 5.11 | G29: 4.83 | H29: 4.83 | I29: 31.91 | J29: 31.91 | K29: 218.4 | L29: 218.4 | M29: 0.25 | N29: 0.25
A30: Чай с сахаром | B30: 411 | C30: 150/9 | D30: 200/12 | E30: 0.11 | F30: 0.15 | G30: 0.03 | H30: 0.04 | I30: 9.1 | J30: 12.13 | K30: 41.37 | L30: 55.16 | M30: 0.075 | N30: 0.1
A31: Итого: | E31: =E30+E29 -> 5.22 | F31: 5.26 | G31: 4.86 | H31: 4.87 | I31: 41.01 | J31: 44.04 | K31: 259.77 | L31: 273.56 | M31: 0.325 | N31: 0.35
A32: Итого за 1 день: | E32: =E31+E27+E18+E14 -> 38.84 | F32: 46.17 | G32: 38.42 | H32: 46.85 | I32: 159.41 | J32: 202.34 | K32: 1172.67 | L32: 1456.96 | M32: 85.295 | N32: 93.18
A33: День 2/вторник 1 неделя
A34: Завтрак
A35: Запеканка творожная с изюмом и со сгущенкой | B35: 251 | C35: 100/20 | D35: 120/20 | E35: 8.4 | F35: 10.08 | G35: 6 | H35: 6.5 | I35: 17.62 | J35: 19.02 | K35: 154.15 | L35: 188 | M35: 0.72 | N35: 0.77
A36: Кофейный напиток с молоком | B36: 414 | C36: 180 | D36: 200 | E36: 2.52 | F36: 2.8 | G36: 2.59 | H36: 2.87 | I36: 13.68 | J36: 15.2 | K36: 87.14 | L36: 96.82 | M36: 1.17 | N36: 1.75
A37: Бутерброд с маслом и сыром | B37: 3 | C37: 55 | D37: 70 | E37: 5.8 | F37: 7.89 | G37: 6.67 | H37: 8.1 | I37: 19.65 | J37: 24.64 | K37: 143.62 | L37: 182.71 | M37: 0.02 | N37: 0.04
A38: Итого: | E38: =E37+E36+E35 -> 16.72 | F38: 20.77 | G38: 15.26 | H38: 17.47 | I38: 50.95 | J38: 58.86 | K38: 384.91 | L38: 467.53 | M38: 1.91 | N38: 2.56
A39: 2-ой завтрак
A40: Сок | B40: 418 | C40: 150 | D40: 150 | E40: 0.75 | F40: 0.75 | G40: 0 | H40: 0 | I40: 8.99 | J40: 8.99 | K40: 61.56 | L40: 61.56 | M40: 3.24 | N40: 3.24
A41: Фрукт | C41: 85 | D41: 85 | E41: 1.2 | F41: 1.2 | G41: 0.12 | H41: 0.12 | I41: 5.18 | J41: 5.18 | K41: 21.77 | L41: 21.77 | M41: 0.1 | N41: 0.1
A42: Итого: | E42: =E41+E40 -> 1.95 | F42: =F41+F40 -> 1.95 | G42: 0.12 | H42: 0.12 | I42: 14.17 | J42: 14.17 | K42: 83.33 | L42: 83.33 | M42: 3.34 | N42: 3.34
A43: Обед
A44: Салат из белокочанной капусты | B44: 21 | C44: 40 | D44: 60 | E44: 0.57 | F44: 0.86 | G44: 1.81 | H44: 2.74 | I44: 3.86 | J44: 5.23 | K44: 37.54 | L44: 49.18 | M44: 13.21 | N44: 19.8
A45: Суп крестьянский на мкб со сметаной | B45: 98 | C45: 180/10/7 | D45: 200/12/8 | E45: 5.32 | F45: 6.95 | G45: 4.26 | H45: 5.75 | I45: 16.28 | J45: 17.14 | K45: 128.52 | L45: 143.52 | M45: 11.87 | N45: 12.02
A46: Макароны отварные со сливчным маслом | B46: 335 | C46: 100 | D46: 150 | E46: 3.32 | F46: 4.25 | G46: 3.69 | H46: 5.11 | I46: 24.46 | J46: 29.45 | K46: 120.4 | L46: 180.6 | M46: 0 | N46: 0
A47: Кнели куриные | B47: 329 | C47: 60 | D47: 75 | E47: 5.54 | F47: 8.1 | G47: 3.72 | H47: 4.65 | I47: 3.85 | J47: 4.81 | K47: 117.5 | L47: 146.87 | M47: 3.62 | N47: 4.53
A48: Хлеб ржано -пшеничный | C48: 30 | D48: 50 | E48: 1.91 | F48: 3.19 | G48: 0.24 | H48: 0.4 | I48: 12.43 | J48: 20.71 | K48: 52.61 | L48: 87.68 | M48: 0 | N48: 0
A49: Компот из сухофруктов | B49: 394 | C49: 120 | D49: 150 | E49: 0.03 | F49: 0.04 | I49: 11.32 | J49: 13.4 | K49: 45.42 | L49: 53.79 | M49: 0.024 | N49: 0.03
A50: Итого: | E50: =E49+E48+E47+E46+E45+E44 -> 16.69 | F50: 23.39 | G50: 13.72 | H50: 18.65 | I50: 72.2 | J50: 90.74 | K50: 501.99 | L50: 661.64 | M50: 28.724 | N50: 36.38
A51: Полдник
A52: Кисломолочный продукт | B52: 420 | C52: 200 | D52: 200 | E52: 5.2 | F52: 5.2 | G52: 5 | H52: 5 | I52: 8 | J52: 8 | K52: 88.2 | L52: 88.2 | M52: 0 | N52: 0
A53: Кондитерское изделие | C53: 25 | D53: 50 | E53: 0.64 | F53: 1.29 | G53: 0.56 | H53: 1.13 | I53: 13.24 | J53: 26.48 | K53: 69.26 | L53: 138.52 | M53: 0.13 | N53: 0.26
A54: Итого: | E54: =E53+E52 -> 5.84 | F54: 6.49 | G54: 5.56 | H54: 6.13 | I54: 21.24 | J54: 34.48 | K54: 157.46 | L54: 226.72 | M54: 0.13 | N54: 0.26
A55: Итого за 1 день: | E55: =E54+E50+E42+E38 -> 41.2 | F55: 52.6 | G55: 34.66 | H55: 42.37 | I55: 158.56 | J55: 198.25 | K55: 1127.69 | L55: 1439.22 | M55: 34.104 | N55: 42.54
A57: День 3 /Среда 1 неделя
A58: Завтрак
A59: Каша манная молочная со сливочным маслом | B59: 199 | C59: 150/5/5 | D59: 180/7/7 | E59: 4.83 | F59: 5.8 | G59: 8.13 | H59: 10.46 | I59: 17.63 | J59: 21.27 | K59: 146.72 | L59: 185.85 | M59: 1.79 | N59: 2.14
A60: Чай сладкий с молоком | B60: 413 | C60: 150 | D60: 200 | E60: 2.03 | F60: 2.71 | G60: 2.32 | H60: 3.1 | I60: 12.18 | J60: 16.24 | K60: 79.23 | L60: 105.65 | M60: 0.94 | N60: 1.26
A61: Бутерброд с повидлом | B61: 2 | C61: 60 | D61: 75 | E61: 2.47 | F61: 3.28 | G61: 3.5 | H61: 3.7 | I61: 24.29 | J61: 31.57 | K61: 128.12 | L61: 144.13 | M61: 0.07 | N61: 0.1
A62: Итого: | E62: =E61+E60+E59 -> 9.33 | F62: 11.79 | G62: 13.95 | H62: 17.26 | I62: 54.1 | J62: 69.08 | K62: 354.07 | L62: 435.63 | M62: 2.8 | N62: 3.5
A63: 2-ой завтрак
A64: Сок | B64: 418 | C64: 150 | D64: 150 | E64: 0.75 | F64: 0.75 | G64: 0 | H64: 0 | I64: 8.99 | J64: 8.99 | K64: 61.56 | L64: 61.56 | M64: 3.24 | N64: 3.24
A65: Итого: | E65: =E64 -> 0.75 | F65: 0.75 | G65: 0 | H65: 0 | I65: 8.99 | J65: 8.99 | K65: 61.56 | L65: 61.56 | M65: 3.24 | N65: 3.24
A66: Обед
A67: Салат из свежих огурцов | B67: 13 | C67: 40 | D67: 60 | E67: 0.29 | F67: 0.44 | G67: 3.03 | H67: 5.05 | I67: 0.96 | J67: 1.43 | K67: 28.33 | L67: 42.49 | M67: 3.7 | N67: 5.5
A68: Щи из свежей капусты с картофелем со сметаной на мкб | B68: 73 | C68: 180/10/7 | D68: 200/12/8 | E68: 4.48 | F68: 6.14 | G68: 5.09 | H68: 7.08 | I68: 6.82 | J68: 7.53 | K68: 109 | L68: 140.9 | M68: 21.86 | N68: 24.21
A69: Жаркое по домашнему из говядины | B69: 290 | C69: 160 | D69: 190 | E69: 15.36 | F69: 19.43 | G69: 8.58 | H69: 10.75 | I69: 20.1 | J69: 28.87 | K69: 257.6 | L69: 305.9 | M69: 23.92 | N69: 28.4
A70: Хлеб ржано -пшеничный | C70: 30 | D70: 50 | E70: 1.91 | F70: 3.19 | G70: 0.24 | H70: 0.4 | I70: 12.43 | J70: 20.71 | K70: 52.61 | L70: 87.68 | M70: 0 | N70: 0
A71: Компот из яблок и изюма | B71: 390 | C71: 120 | D71: 150 | E71: 0.17 | F71: 0.21 | G71: 0.05 | H71: 0.06 | I71: 15.13 | J71: 18.92 | K71: 51.7 | L71: 64.62 | M71: 1.76 | N71: 2.21
A72: Итого: | E72: =E71+E70+E69+E68+E67 -> 22.21 | F72: 29.41 | G72: 16.99 | H72: 23.34 | I72: 55.44 | J72: 77.46 | K72: 499.24 | L72: 641.59 | M72: 51.24 | N72: 60.32
A73: Полдник
A74: Булочка домашняя | B74: 452 | C74: 60 | D74: 60 | E74: 4.86 | F74: 4.86 | G74: 5.3 | H74: 5.3 | I74: 36.8 | J74: 36.8 | K74: 188.32 | L74: 188.32 | M74: 0.15 | N74: 0.15
A75: Кисломолочный продукт | B75: 420 | C75: 150 | D75: 200 | E75: 3.9 | F75: 5.2 | G75: 3.37 | H75: 4.5 | I75: 5.67 | J75: 7.56 | K75: 65.9 | L75: 87.86 | M75: 0.4 | N75: 0.54
A76: Итого: | E76: =E75+E74 -> 8.76 | F76: 10.06 | G76: 8.67 | H76: 9.8 | I76: 42.47 | J76: 44.36 | K76: 254.22 | L76: 276.18 | M76: 0.55 | N76: 0.69
A77: Итого за 1 день: | E77: =E76+E72+E65+E62 -> 41.05 | F77: 52.01 | G77: 39.61 | H77: 50.4 | I77: 161 | J77: 199.89 | K77: 1169.09 | L77: 1414.96 | M77: 57.83 | N77: 67.75
A78: День 4 /Четверг 1 неделя
A79: Завтрак
A80: Суп молочный вермишелевый | B80: 100 | C80: 150 | D80: 180 | E80: 4.78 | F80: 5.73 | G80: 4.44 | H80: 5.72 | I80: 17.31 | J80: 20.78 | K80: 106.72 | L80: 129.69 | M80: 1.22 | N80: 1.46
A81: Какао с молоком | B81: 416 | C81: 150 | D81: 200 | E81: 3.06 | F81: 4.08 | G81: 2.96 | H81: 3.94 | I81: 12.47 | J81: 16.6 | K81: 87.6 | L81: 116.8 | M81: 1.07 | N81: 1.42
A82: Бутерброд с маслом | B82: 1 | C82: 40/10 | D82: 50/10 | E82: 2.91 | F82: 3.62 | G82: 5.88 | H82: 5.97 | I82: 17.43 | J82: 21.8 | K82: 143 | L82: 164.33 | M82: 0 | N82: 0
A83: Итого: | E83: =E82+E81+E80 -> 10.75 | F83: 13.43 | G83: 13.28 | H83: 15.63 | I83: 47.21 | J83: 59.18 | K83: 337.32 | L83: 410.82 | M83: 2.29 | N83: 2.88
A84: 2-ой завтрак
A85: Кисломолочный продукт | B85: 420 | C85: 120 | D85: 150 | E85: 3.12 | F85: 3.9 | G85: 3 | H85: 3.75 | I85: 4.8 | J85: 6 | K85: 52.92 | L85: 66.15 | M85: 0 | N85: 0
A86: Фрукт | C86: 85 | D86: 85 | E86: 0.72 | F86: 0.72 | G86: 0.2 | H86: 0.2 | I86: 6.48 | J86: 6.48 | K86: 34.4 | L86: 34.4 | M86: 48 | N86: 48
A87: Итого: | E87: =E85+E86 -> 3.84 | F87: =F85+F86 -> 4.62 | G87: 3.2 | H87: 3.95 | I87: 11.28 | J87: 12.48 | K87: 87.32 | L87: 100.55 | M87: 48 | N87: 48
A88: Обед
A89: Салат из отварной свеклы | B89: 34 | C89: 40 | D89: 60 | E89: 0.57 | F89: 0.87 | G89: 2.43 | H89: 4.05 | I89: 3.49 | J89: 5.27 | K89: 38.2 | L89: 61.07 | M89: 3.8 | N89: 5.8
A90: Суп с клецками на мкб со сметаной | B90: 91 | C90: 180/10/7 | D90: 200/12/8 | E90: 5.36 | F90: 7.55 | G90: 6.66 | H90: 8.55 | I90: 16.79 | J90: 18.57 | K90: 124.36 | L90: 174.21 | M90: 9.57 | N90: 11.09
A91: Запеканка рыбная с рисом | C91: 120 | D91: 150 | E91: 6.95 | F91: 8.82 | G91: 7.6 | H91: 9.5 | I91: 20.49 | J91: 22.61 | K91: 188.5 | L91: 235.62 | M91: 17.74 | N91: 22.1
A92: Хлеб ржано -пшеничный | C92: 30 | D92: 50 | E92: 1.91 | F92: 3.19 | G92: 0.24 | H92: 0.4 | I92: 12.43 | J92: 20.71 | K92: 52.61 | L92: 87.68 | M92: 0 | N92: 0
A93: Кисель | C93: 120 | D93: 150 | E93: 0 | F93: 0 | G93: 0 | H93: 0 | I93: 19.44 | J93: 21.77 | K93: 71.28 | L93: 87.48 | M93: 0 | N93: 0
A94: Итого: | E94: =E93+E92+E91+E90+E89 -> 14.79 | F94: 20.43 | G94: 16.93 | H94: 22.5 | I94: 72.64 | J94: 88.93 | K94: 474.95 | L94: 646.06 | M94: 31.11 | N94: 38.99
A95: Полдник
A96: Оладьи со сгущенным молоком | B96: 432 | C96: 80/10 | D96: 120/10 | E96: 5.4 | F96: 8.1 | G96: 4.95 | H96: 7.43 | I96: 32.26 | J96: 48.4 | K96: 200.48 | L96: 289.58 | M96: 0.44 | N96: 0.66
A97: Чай без сахара | B97: 411 | C97: 150 | D97: 200 | E97: 0.01 | F97: 0.01 | G97: 0 | H97: 0 | I97: 0.02 | J97: 0.03 | K97: 0.06 | L97: 0.09 | M97: 0.04 | N97: 0.05
A98: Итого: | E98: =E97+E96 -> 5.41 | F98: 8.11 | G98: 4.95 | H98: 7.43 | I98: 32.28 | J98: 48.43 | K98: 200.54 | L98: 289.67 | M98: 0.48 | N98: 0.71
A99: Итого на 1 день: | E99: =E98+E94+E87+E83 -> 34.79 | F99: 46.59 | G99: 38.36 | H99: 49.51 | I99: 163.41 | J99: 209.02 | K99: 1100.13 | L99: 1447.1 | M99: 81.88 | N99: 90.58
A100: День 5 /Пятница 1 неделя
A101: Завтрак
A102: Омлет натуральный со сливочным маслом | B102: 229 | C102: 120/5 | D102: 150/5 | E102: 6.15 | F102: 7.68 | G102: 7.6 | H102: 9.5 | I102: 15.42 | J102: 19.27 | K102: 146.7 | L102: 184.5 | M102: 0.88 | N102: 1.1
A103: Кофейный напиток с молоком | B103: 414 | C103: 180 | D103: 200 | E103: 2.52 | F103: 2.8 | G103: 2.59 | H103: 2.87 | I103: 13.68 | J103: 15.2 | K103: 87.14 | L103: 96.82 | M103: 1.17 | N103: 1.75
A104: Бутерброд с маслом и сыром | B104: 3 | C104: 55 | D104: 70 | E104: 5.8 | F104: 7.89 | G104: 6.67 | H104: 8.1 | I104: 19.65 | J104: 24.64 | K104: 143.62 | L104: 182.71 | M104: 0.02 | N104: 0.04
A105: Итого: | E105: =E104+E103+E102 -> 14.47 | F105: 18.37 | G105: 16.86 | H105: 20.47 | I105: 48.75 | J105: 59.11 | K105: 377.46 | L105: 464.03 | M105: 2.07 | N105: 2.89
A106: 2-ой завтрак
A107: Кисломолочный продукт | B107: 420 | C107: 120 | D107: 150 | E107: 3.12 | F107: 3.9 | G107: 3 | H107: 3.75 | I107: 4.8 | J107: 6 | K107: 52.92 | L107: 66.15 | M107: 0 | N107: 0
A108: Фрукт | C108: 85 | D108: 85 | E108: 1.44 | F108: 1.44 | G108: 0.17 | H108: 0.17 | I108: 6.88 | J108: 6.88 | K108: 32.13 | L108: 32.13 | M108: 51 | N108: 51
A109: Итого: | E109: =E108+E107 -> 4.56 | F109: 5.34 | G109: 3.17 | H109: 3.92 | I109: 11.68 | J109: 12.88 | K109: 85.05 | L109: 98.28 | M109: 51 | N109: 51
A110: Обед
A111: Салат" Витаминный" | B111: 21 | C111: 40 | D111: 60 | E111: 0.57 | F111: 0.86 | G111: 1.81 | H111: 2.74 | I111: 3.86 | J111: 5.23 | K111: 37.54 | L111: 49.18 | M111: 13.21 | N111: 19.8
A112: Суп картофельный с бобовыми (гороховый) на мкб | B112: 87 | C112: 180/10 | D112: 200/12 | E112: 5.48 | F112: 6.11 | G112: 4.87 | H112: 8.24 | I112: 11.87 | J112: 17.1 | K112: 117.31 | L112: 130.89 | M112: 6.8 | N112: 9.1
A113: Каша гречневая со сливочным маслом | B113: 330 | C113: 100 | D113: 130 | E113: 4.45 | F113: 5.85 | G113: 4.78 | H113: 6.59 | I113: 25.8 | J113: 33.54 | K113: 148 | L113: 197.37 | M113: 0 | N113: 0
A114: Гуляш из говядины | B114: 293 | C114: 35/35 | D114: 40/40 | E114: 5.96 | F114: 6.92 | G114: 5 | H114: 5.71 | I114: 14.77 | J114: 16.88 | K114: 157.3 | L114: 187.56 | M114: 1.19 | N114: 1
A115: Хлеб ржано -пшеничный | C115: 30 | D115: 50 | E115: 1.91 | F115: 3.19 | G115: 0.24 | H115: 0.4 | I115: 12.43 | J115: 20.71 | K115: 52.61 | L115: 87.68 | M115: 0 | N115: 0
A116: Компот из сухофруктов | B116: 394 | C116: 120 | D116: 150 | E116: 0.03 | F116: 0.04 | I116: 11.32 | J116: 13.4 | K116: 45.42 | L116: 53.79 | M116: 0.024 | N116: 0.03
A117: Итого: | E117: =E116+E115+E114+E113+E112+E111 -> 18.4 | F117: 22.97 | G117: 16.7 | H117: 23.68 | I117: 80.05 | J117: 106.86 | K117: 558.18 | L117: 706.47 | M117: 21.224 | N117: 29.93
A118: Полдник
A119: Сырники из творога | B119: 245 | C119: 50/10 | D119: 80/20 | E119: 4.2 | F119: 6.72 | G119: 2.33 | H119: 2.73 | I119: 8.93 | J119: 14.28 | K119: 74.7 | L119: 122.3 | M119: 0.22 | N119: 0.36
A120: Чай с сахаром | B120: 411 | C120: 150/9 | D120: 200/12 | E120: 0.11 | F120: 0.15 | G120: 0.03 | H120: 0.04 | I120: 9.1 | J120: 12.13 | K120: 41.37 | L120: 55.16 | M120: 0.075 | N120: 0.1
A121: Итого: | E121: =E120+E119 -> 4.31 | F121: 6.87 | G121: 2.36 | H121: 2.77 | I121: 18.03 | J121: 26.41 | K121: 116.07 | L121: 177.46 | M121: 0.295 | N121: 0.46
A122: Итого за 1 день: | E122: =E121+E117+E109+E105 -> 41.74 | F122: 53.55 | G122: 39.09 | H122: 50.84 | I122: 158.51 | J122: 205.26 | K122: 1136.76 | L122: 1446.24 | M122: 74.589 | N122: 84.28
A123: День 6 / Понедельник 2 неделя
A124: Завтрак
A125: Каша молочная геркулесовая со сливочным маслом | B125: 199 | C125: 150/5/5 | D125: 180/7/7 | E125: 5.49 | F125: 5.8 | G125: 8.52 | H125: 9.99 | I125: 20.62 | J125: 26.14 | K125: 192.33 | L125: 222.44 | M125: 1.52 | N125: 1.75
A126: Чай сладкий с молоком | B126: 413 | C126: 150 | D126: 200 | E126: 2.03 | F126: 2.71 | G126: 2.32 | H126: 3.1 | I126: 12.18 | J126: 16.24 | K126: 79.23 | L126: 105.65 | M126: 0.94 | N126: 1.26
A127: Бутерброд с повидлом | B127: 2 | C127: 60 | D127: 75 | E127: 2.47 | F127: 3.28 | G127: 3.5 | H127: 3.7 | I127: 24.29 | J127: 31.57 | K127: 128.12 | L127: 144.13 | M127: 0.07 | N127: 0.1
A128: Итого: | E128: =E127+E126+E125 -> 9.99 | F128: 11.79 | G128: 14.34 | H128: 16.79 | I128: 57.09 | J128: 73.95 | K128: 399.68 | L128: 472.22 | M128: 2.53 | N128: 3.11
A129: 2-ой завтрак
A130: Сок | B130: 418 | C130: 150 | D130: 150 | E130: 0.75 | F130: 0.75 | G130: 0 | H130: 0 | I130: 8.99 | J130: 8.99 | K130: 61.56 | L130: 61.56 | M130: 3.24 | N130: 3.24
A131: Фрукт | C131: 85 | D131: 85 | E131: 0.72 | F131: 0.72 | G131: 0.2 | H131: 0.2 | I131: 6.48 | J131: 6.48 | K131: 34.4 | L131: 34.4 | M131: 48 | N131: 48
A132: Итого: | E132: =E130+E131 -> 1.47 | F132: =F130+F131 -> 1.47 | G132: 0.2 | H132: 0.2 | I132: 15.47 | J132: 15.47 | K132: 95.96 | L132: 95.96 | M132: 51.24 | N132: 51.24
A133: Обед
A134: Салат из свежих огурцов | B134: 13 | C134: 40 | D134: 60 | E134: 0.29 | F134: 0.44 | G134: 3.03 | H134: 5.05 | I134: 0.96 | J134: 1.43 | K134: 28.33 | L134: 42.49 | M134: 3.7 | N134: 5.5
A135: Борщ с капустой и картофелем со сметаной на мкб | B135: 63 | C135: 180/10/7 | D135: 200/12/8 | E135: 4.69 | F135: 5.23 | G135: 4.51 | H135: 5.03 | I135: 7.17 | J135: 10.58 | K135: 117.34 | L135: 136.82 | M135: 11.22 | N135: 14.3
A136: Рыба, запеченная в омлете | B136: 263 | C136: 120 | D136: 150 | E136: 13.72 | F136: 17.15 | G136: 7.52 | H136: 9.4 | I136: 8.58 | J136: 11.72 | K136: 152.96 | L136: 191.2 | M136: 1.65 | N136: 2.06
A137: Хлеб ржано -пшеничный | C137: 30 | D137: 50 | E137: 1.91 | F137: 3.19 | G137: 0.24 | H137: 0.4 | I137: 12.43 | J137: 20.71 | K137: 52.61 | L137: 87.68 | M137: 0 | N137: 0
A138: Компот из яблок и изюма | B138: 390 | C138: 120 | D138: 150 | E138: 0.17 | F138: 0.21 | G138: 0.05 | H138: 0.06 | I138: 15.13 | J138: 18.92 | K138: 51.7 | L138: 64.62 | M138: 1.76 | N138: 2.21
A139: Итого: | E139: =E138+E137+E136+E135+E134 -> 20.78 | F139: 26.22 | G139: 15.35 | H139: 19.94 | I139: 44.27 | J139: 63.36 | K139: 402.94 | L139: 522.81 | M139: 18.33 | N139: 24.07
A140: Полдник
A141: Слойка с сахаром | B141: 441 | C141: 60 | D141: 60 | E141: 4.86 | F141: 4.86 | G141: 7.3 | H141: 7.3 | I141: 38.8 | J141: 38.8 | K141: 202.5 | L141: 202.5 | M141: 0.15 | N141: 0.15
A142: Кисломолочный продукт | B142: 420 | C142: 150 | D142: 200 | E142: 3.9 | F142: 5.2 | G142: 3.37 | H142: 4.5 | I142: 5.67 | J142: 7.56 | K142: 65.9 | L142: 87.86 | M142: 0.4 | N142: 0.54
A143: Итого: | E143: =E142+E141 -> 8.76 | F143: 10.06 | G143: 10.67 | H143: 11.8 | I143: 44.47 | J143: 46.36 | K143: 268.4 | L143: 290.36 | M143: 0.55 | N143: 0.69
A144: Итого за 1 день: | E144: =E143+E139+E132+E128 -> 41 | F144: 49.54 | G144: 40.56 | H144: 48.73 | I144: 161.3 | J144: 199.14 | K144: 1166.98 | L144: 1381.35 | M144: 72.65 | N144: 79.11
A146: День 7 / Вторник 2 неделя
A147: Завтрак
A148: Запеканка творожная с изюмом и со сгущенкой | B148: 251 | C148: 100/20 | D148: 120/20 | E148: 8.4 | F148: 10.08 | G148: 6 | H148: 6.5 | I148: 17.62 | J148: 19.02 | K148: 154.15 | L148: 188 | M148: 0.72 | N148: 0.77
A149: Какао с молоком | B149: 416 | C149: 150 | D149: 200 | E149: 3.06 | F149: 4.08 | G149: 2.96 | H149: 3.94 | I149: 12.47 | J149: 16.6 | K149: 87.6 | L149: 116.8 | M149: 1.07 | N149: 1.42
A150: Бутерброд с маслом | B150: 1 | C150: 40/10 | D150: 50/10 | E150: 2.91 | F150: 3.62 | G150: 5.88 | H150: 5.97 | I150: 17.43 | J150: 21.8 | K150: 143 | L150: 164.33 | M150: 0 | N150: 0
A151: Яйцо отварное | C151: 40 | D151: 40 | E151: 4.41 | F151: 4.41 | G151: 2.72 | H151: 2.72 | I151: 0.22 | J151: 0.22 | K151: 40.6 | L151: 40.6 | M151: 0 | N151: 0
A152: Итого: | E152: =E150+E149+E148+E151 -> 18.78 | F152: 22.19 | G152: 17.56 | H152: 19.13 | I152: 47.74 | J152: 57.64 | K152: 425.35 | L152: 509.73 | M152: 1.79 | N152: 2.19
A153: 2-ой завтрак
A154: Кисель | C154: 120 | D154: 150 | E154: 0 | F154: 0 | G154: 0 | H154: 0 | I154: 19.44 | J154: 21.77 | K154: 71.28 | L154: 87.48 | M154: 0 | N154: 0
A155: Итого: | E155: =E154 -> 0 | F155: =F154 -> 0 | G155: 0 | H155: 0 | I155: 19.44 | J155: 21.77 | K155: 71.28 | L155: 87.48 | M155: 0 | N155: 0
A156: Обед
A157: Салат" Витаминный" | B157: 21 | C157: 40 | D157: 60 | E157: 0.57 | F157: 0.86 | G157: 1.81 | H157: 2.74 | I157: 3.86 | J157: 5.23 | K157: 37.54 | L157: 49.18 | M157: 13.21 | N157: 19.8
A158: Суп картофельный с крупой ( гречневый ) на мкб со сметаной | B158: 86 | C158: 180/10/7 | D158: 200/12/8 | E158: 4.58 | F158: 6.18 | G158: 5.78 | H158: 6.8 | I158: 18.84 | J158: 23.1 | K158: 133.91 | L158: 156.6 | M158: 7.87 | N158: 8.82
A159: Рагу овощное | B159: 362 | C159: 100 | D159: 150 | E159: 1.66 | F159: 2.49 | G159: 3.86 | H159: 5.8 | I159: 12.38 | J159: 14.07 | K159: 85.78 | L159: 128.67 | M159: 20.6 | N159: 31
A160: Котлета куриная | B160: 299 | C160: 60 | D160: 75 | E160: 7.66 | F160: 9.57 | G160: 4.3 | H160: 4.9 | I160: 8.5 | J160: 10.62 | K160: 117.44 | L160: 146.8 | M160: 0.5 | N160: 0.62
A161: Хлеб ржано -пшеничный | C161: 30 | D161: 50 | E161: 1.91 | F161: 3.19 | G161: 0.24 | H161: 0.4 | I161: 12.43 | J161: 20.71 | K161: 52.61 | L161: 87.68 | M161: 0 | N161: 0
A162: Компот из свежих фруктов | B162: 390 | C162: 120 | D162: 150 | E162: 0.03 | F162: 0.04 | G162: 0 | H162: 0 | I162: 10.19 | J162: 12.74 | K162: 41 | L162: 51.11 | M162: 0.02 | N162: 0.03
A163: Итого: | E163: =E162+E161+E160+E159+E158+E157 -> 16.41 | F163: 22.33 | G163: 15.99 | H163: 20.64 | I163: 66.2 | J163: 86.47 | K163: 468.28 | L163: 620.04 | M163: 42.2 | N163: 60.27
A164: Полдник
A165: Кисломолочный продукт | B165: 420 | C165: 200 | D165: 200 | E165: 5.2 | F165: 5.2 | G165: 5 | H165: 5 | I165: 8 | J165: 8 | K165: 88.2 | L165: 88.2 | M165: 0 | N165: 0
A166: Кондитерское изделие | C166: 25 | D166: 50 | E166: 0.64 | F166: 1.29 | G166: 0.56 | H166: 1.13 | I166: 13.24 | J166: 26.48 | K166: 69.26 | L166: 138.52 | M166: 0.13 | N166: 0.26
A167: Итого: | E167: =E166+E165 -> 5.84 | F167: 6.49 | G167: 5.56 | H167: 6.13 | I167: 21.24 | J167: 34.48 | K167: 157.46 | L167: 226.72 | M167: 0.13 | N167: 0.26
A168: Итого за 1 день: | E168: =E167+E163+E155+E152 -> 41.03 | F168: 51.01 | G168: 39.11 | H168: 45.9 | I168: 154.62 | J168: 200.36 | K168: 1122.37 | L168: 1443.97 | M168: 44.12 | N168: 62.72
A170: День 8 / Среда 2 неделя
A171: Завтрак
A172: Каша"дружба" молочная со сливочным маслом | B172: 199 | C172: 150/5/5 | D172: 180/7/7 | E172: 5.02 | F172: 6.1 | G172: 7.96 | H172: 10.3 | I172: 16.96 | J172: 22.75 | K172: 159.48 | L172: 228.8 | M172: 1.62 | N172: 1.95
A173: Кофейный напиток с молоком | B173: 414 | C173: 180 | D173: 200 | E173: 2.52 | F173: 2.8 | G173: 2.59 | H173: 2.87 | I173: 13.68 | J173: 15.2 | K173: 87.14 | L173: 96.82 | M173: 1.17 | N173: 1.75
A174: Бутерброд с маслом и сыром | B174: 3 | C174: 55 | D174: 70 | E174: 5.8 | F174: 7.89 | G174: 6.67 | H174: 8.1 | I174: 19.65 | J174: 24.64 | K174: 143.62 | L174: 182.71 | M174: 0.02 | N174: 0.04
A175: Итого: | E175: =E174+E173+E172 -> 13.34 | F175: 16.79 | G175: 17.22 | H175: 21.27 | I175: 50.29 | J175: 62.59 | K175: 390.24 | L175: 508.33 | M175: 2.81 | N175: 3.74
A176: 2-ой завтрак
A177: Сок | B177: 418 | C177: 150 | D177: 150 | E177: 0.75 | F177: 0.75 | G177: 0 | H177: 0 | I177: 8.99 | J177: 8.99 | K177: 61.56 | L177: 61.56 | M177: 3.24 | N177: 3.24
A178: Фрукт | C178: 85 | D178: 85 | E178: 1.44 | F178: 1.44 | G178: 0.17 | H178: 0.17 | I178: 6.88 | J178: 6.88 | K178: 32.13 | L178: 32.13 | M178: 51 | N178: 51
A179: Итого: | E179: =E177+E178 -> 2.19 | F179: =F177+F178 -> 2.19 | G179: 0.17 | H179: 0.17 | I179: 15.87 | J179: 15.87 | K179: 93.69 | L179: 93.69 | M179: 54.24 | N179: 54.24
A180: Обед
A181: Салат из отварной свеклы | B181: 34 | C181: 40 | D181: 60 | E181: 0.57 | F181: 0.87 | G181: 2.43 | H181: 4.05 | I181: 3.49 | J181: 5.27 | K181: 38.2 | L181: 61.07 | M181: 3.8 | N181: 5.8
A182: Суп картофельный с макаронными изделиями на мкб со сметаной | B182: 88 | C182: 180/10/7 | D182: 200/12/8 | E182: 6.35 | F182: 8.02 | G182: 7.25 | H182: 9.62 | I182: 13.5 | J182: 17.9 | K182: 152.63 | L182: 190.4 | M182: 12.81 | N182: 14.39
A183: Голубцы ленивые | B183: 315 | C183: 160 | D183: 190 | E183: 4.71 | F183: 5.6 | G183: 5.45 | H183: 6.47 | I183: 13.4 | J183: 18.4 | K183: 155.2 | L183: 184.35 | M183: 40.54 | N183: 48.15
A184: Хлеб ржано -пшеничный | C184: 30 | D184: 50 | E184: 1.91 | F184: 3.19 | G184: 0.24 | H184: 0.4 | I184: 12.43 | J184: 20.71 | K184: 52.61 | L184: 87.68 | M184: 0 | N184: 0
A185: Компот из сухофруктов | B185: 394 | C185: 120 | D185: 150 | E185: 0.03 | F185: 0.04 | I185: 11.32 | J185: 13.4 | K185: 45.42 | L185: 53.79 | M185: 0.024 | N185: 0.03
A186: Итого: | E186: =E185+E184+E183+E182+E181 -> 13.57 | F186: 17.72 | G186: 15.37 | H186: 20.54 | I186: 54.14 | J186: 75.68 | K186: 444.06 | L186: 577.29 | M186: 57.174 | N186: 68.37
A187: Полдник
A188: Булочка домашняя | B188: 452 | C188: 60 | D188: 60 | E188: 4.86 | F188: 4.86 | G188: 5.3 | H188: 5.3 | I188: 36.8 | J188: 36.8 | K188: 188.32 | L188: 188.32 | M188: 0.15 | N188: 0.15
A189: Кисломолочный продукт | B189: 420 | C189: 150 | D189: 200 | E189: 3.9 | F189: 5.2 | G189: 4.2 | H189: 5 | I189: 6 | J189: 8 | K189: 66.15 | L189: 88.2 | M189: 0 | N189: 0
A190: Итого: | E190: =E189+E188 -> 8.76 | F190: 10.06 | G190: 9.5 | H190: 10.3 | I190: 42.8 | J190: 44.8 | K190: 254.47 | L190: 276.52 | M190: 0.15 | N190: 0.15
A191: Итого за 1 день: | E191: =E190+E186+E179+E175 -> 37.86 | F191: 46.76 | G191: 42.26 | H191: 52.28 | I191: 163.1 | J191: 198.94 | K191: 1182.46 | L191: 1455.83 | M191: 114.374 | N191: 126.5
A193: День 9 / Четверг 2 неделя
A194: Завтрак
A195: Суп молочный с крупой | B195: 101 | C195: 150 | D195: 180 | E195: 3.41 | F195: 4.06 | G195: 5.41 | H195: 5.7 | I195: 12.52 | J195: 15.02 | K195: 115.89 | L195: 139.06 | M195: 1.36 | N195: 1.63
A196: Чай сладкий с молоком | B196: 413 | C196: 150 | D196: 200 | E196: 2.03 | F196: 2.71 | G196: 2.32 | H196: 3.1 | I196: 12.18 | J196: 16.24 | K196: 79.23 | L196: 105.65 | M196: 0.94 | N196: 1.26
A197: Бутерброд с повидлом | B197: 2 | C197: 60 | D197: 75 | E197: 2.47 | F197: 3.28 | G197: 3.5 | H197: 3.7 | I197: 24.29 | J197: 31.57 | K197: 128.12 | L197: 144.13 | M197: 0.07 | N197: 0.1
A198: Итого: | E198: =E197+E196+E195 -> 7.91 | F198: 10.05 | G198: 11.23 | H198: 12.5 | I198: 48.99 | J198: 62.83 | K198: 323.24 | L198: 388.84 | M198: 2.37 | N198: 2.99
A199: 2-ой завтрак
A200: Кисломолочный продукт | B200: 420 | C200: 120 | D200: 150 | E200: 3.12 | F200: 3.9 | G200: 2.69 | H200: 3.37 | I200: 4.53 | J200: 5.67 | K200: 52.72 | L200: 65.9 | M200: 0.3 | N200: 0.4
A201: Фрукт | C201: 85 | D201: 85 | E201: 1.2 | F201: 1.2 | G201: 0.12 | H201: 0.12 | I201: 5.18 | J201: 5.18 | K201: 21.77 | L201: 21.77 | M201: 0.1 | N201: 0.1
A202: Итого: | E202: =E201+E200 -> 4.32 | F202: 5.1 | G202: 2.81 | H202: 3.49 | I202: 9.71 | J202: 10.85 | K202: 74.49 | L202: 87.67 | M202: 0.4 | N202: 0.5
A203: Обед
A204: Томаты свежие | B204: 15 | C204: 40 | D204: 60 | E204: 0.44 | F204: 0.67 | G204: 2.18 | H204: 3.64 | I204: 4.64 | J204: 7.35 | K204: 40.1 | L204: 64.95 | M204: 1.72 | N204: 2.61
A205: Щи из свежей капусты с картофелем со сметаной на мкб | B205: 73 | C205: 180/10/7 | D205: 200/12/8 | E205: 4.48 | F205: 6.14 | G205: 7.09 | H205: 9.58 | I205: 6.82 | J205: 7.53 | K205: 109 | L205: 140.9 | M205: 21.86 | N205: 24.21
A206: Картофельное пюре | B206: 339 | C206: 100 | D206: 130 | E206: 2.28 | F206: 2.96 | G206: 3.77 | H206: 4.72 | I206: 13.92 | J206: 18.09 | K206: 104.96 | L206: 128.3 | M206: 18.2 | N206: 21.87
... 31 more rows

Sheet Сличительное меню
D1: Утверждаю: Директор МБОУ Нижне-Тимерлековской ООШ:_______В.М.Гайнуллин
A2: День1/ Понедельник 1 неделя | B2: День2/ Вторник 1 неделя | C2: День 3 / Среда 1 неделя | D2: День 4 / Четверг 1 неделя | E2: День 5 / Пятница 1 неделя
A3: Завтрак | B3: Завтрак | C3: Завтрак | D3: Завтрак | E3: Завтрак
A4: Суп молочный пшенный | B4: Запеканка творожная с изюмом и со сгущенкой | C4: Каша манная молочная со сливочным маслом | D4: суп молочный с вермишелевый | E4: Омлет натуральный со сливочным маслом
A5: Какао с молоком | B5: Кофейный напиток с молоком | C5: Чай сладкий с молоком | D5: Какао с молоком | E5: Кофейный напиток с молоком
A6: Бутерброд с маслом | B6: Бутерброд с маслом и сыром | C6: Бутерброд с повидлом | D6: Бутерброд с маслом | E6: Бутерброд с маслом и сыром
A8: 2-ой завтрак | B8: 2-ой завтрак | C8: 2-ой завтрак | D8: 2-ой завтрак | E8: 2-ой завтрак
A9: Кисломолочный продукт | B9: Сок | C9: Сок | D9: Кисломолочный продукт | E9: Кисломолочный продукт
A10: Фрукт | B10: Фрукт | D10: Фрукт | E10: Фрукт
A11: Обед | B11: Обед | C11: Обед | D11: Обед | E11: Обед
A12: огурцы свежие | B12: Салат из свежей капусты (до 1 марта)Венегрет | C12: Салат из моркови с изюмом(до 1 марта) | D12: Салат из отварной свеклы | E12: Салат Витаманный(до 1 марта)
A13: Борщ на мкб со сметаной | B13: Суп крестянский на мкб со сметаной | C13: Щи на мкб со сметаной | D13: Суп с клецками на мкб со сметаной | E13: Суп картофельный с бобовыми на мкб
A14: Пюре картофельное | B14: Макароны отварные со сливочным маслом | C14: Жаркое домашнее из говядины | D14: Запеканка рыбная с рисом | E14: Каша гречневая отварная со сливочным маслом
A15: Сосиска отварная сад | B15: Кнели куриные | E15: Гуляш из говядины
A16: Хлеб пшеничный /ржано-пшеничный | B16: Хлеб пшеничный /ржано-пшеничный | C16: Хлеб пшеничный /ржано-пшеничный | D16: Хлеб пшеничный /ржано-пшеничный | E16: Хлеб пшеничный /ржано-пшеничный
A17: Кисель вишневый | B17: Компот из сухофруктов | C17: Компот из яблок и изюма | D17: Кисель вишневый | E17: Компот из сухофруктов
A19: Полдник | B19: Полдник | C19: Полдник | D19: Полдник | E19: Полдник
A20: булочка с повидлом | B20: Кисломолочный продукт | C20: Булочка домашняя | D20: Чай без сахара | E20: Сырники творожные запеченные
A21: Чай с сахаром | B21: Кондитерское изделие | C21: Кисломолочный продукт | D21: Оладьи со сгущенным молоком | E21: Чай с сахаром
A25: День 6 /Понедельник 2 неделя | B25: День 7/Вторник 2 неделя | C25: День 8 /Среда 2 неделя | D25: День 9 /Четверг 2 неделя | E25: День 10 /Пятница 2 неделя
A26: Завтрак | B26: Завтрак | C26: Завтрак | D26: Завтрак | E26: Завтрак
A27: Каша молочная жидкая геркулесовая со сливочным маслом | B27: Запеканка творожная с изюмом и со сгущенкой | C27: Каша "Дружба" жидкая молочная со слив.маслом | D27: Суп молочный рисовый | E27: Каша ячневая жидкая молочная со сливочным маслом
A28: Бутеррод с повидлом | B28: Бутерброд с маслом | C28: Кофейный напиток с молоком | D28: Бутерброд с повидлом | E28: Какао с молоком
A29: Чай сладкий с молоком | B29: Какао с молоком | C29: Бутерброд с маслом и сыром | D29: Чай сладкий с молоком | E29: Бутерброд с маслом
B30: Яйцо отварное
A32: 2-ой завтрак | B32: 2-ой завтрак | C32: 2-ой завтрак | D32: 2-ой завтрак | E32: 2-ой завтрак
A33: Сок | B33: Кисель клюквенный | C33: Сок | D33: Кисломолочный продукт | E33: Сок
A34: Фрукт | C34: Фрукт | D34: Фрукт | E34: Фрукт
A35: Обед | B35: Обед | C35: Обед | D35: Обед | E35: Обед
A36: Салат из моркови (до 1 марта) | B36: Салат Витаминный(до 1 марта) | C36: Салат из отварной свеклы | D36: огурцы свежие | E36: Салат из свежей капусты
A37: Борщ на мкб со сметаной | B37: Суп картофельный с крупой (гречневый) на мкб | C37: Суп картофельный с макаронными изделиями | D37: Щи на мкб со сметаной | E37: Суп картофельный с бобовыми на мкб
A38: Рыба под омлетом | B38: Рагу овощное | C38: Голубцы ленивые | D38: Картофельное пюре | E38: Плов из говядины
A39: Хлеб пшеничный /ржано-пшеничный | B39: Котлета куриная | C39: Хлеб пшеничный /ржано-пшеничный | D39: Биточки рыбные | E39: Хлеб пшеничный /ржано-пшеничный
A40: Компот из яблок и изюма | B40: Хлеб пшеничный /ржано-пшеничный | C40: Компот из сухофруктов | D40: Хлеб пшеничный /ржано-пшеничный | E40: Компот из яблок
B41: Компот из яблок | D41: Компот из яблок и изюма
A43: Полдник | B43: Полдник | C43: Полдник | D43: Полдник | E43: Полдник
A44: Слойка с сахаром | B44: Кисломолочный продукт | C44: Булочка домашняя | D44: Чай без сахара | E44: Кондитерское изделие
A45: Кисломолочный продукт | B45: Кондитерское изделие | C45: Кисломолочный продукт | D45: Оладьи со сгущенным молоком | E45: Кисломолочный продукт

Sheet Суммарные объёмы блюд

Sheet Пищевая ценность

Sheet Меню раскладка 1 день

Sheet Меню раскладка 2 день
B1: Меню-раскладка 2 день
A3: Наименование блюда | B3: номер рецептуры по сборнику | C3: масса порций, в гр. | E3: Пищевая ценность | K3: Энергетическая ценность | M3: Витамин С
E4: белки | G4: жиры | I4: углеводы
A5: Завтрак | C5: 1-3 года | D5: 3-7 лет | E5: 1-3 года | F5: 3-7 лет | G5: 1-3 года | H5: 3-7 лет | I5: 1-3 года | J5: 3-7 лет | K5: 1-3 года | L5: 3-7 лет | M5: 1-3 года | N5: 3-7 лет
A6: Запеканка творожная с изюмом и со сгущенкой | B6: 251 | C6: 100/20 | D6: 120/20 | E6: 8.4 | F6: 10.08 | G6: 6 | H6: 6.5 | I6: 17.62 | J6: 19.02 | K6: 154.15 | L6: 188 | M6: 0.72 | N6: 0.77
A7: творог | C7: 92 | D7: 110
A8: манная крупа | C8: 6 | D8: 7
A9: молоко | C9: 25 | D9: 30
A10: сметана | C10: 5 | D10: 6
A11: яйцо | C11: 5 | D11: 6
A12: сахарный песок | C12: 9 | D12: 11
A13: масло сливочное | C13: 5 | D13: 6
A14: изюм | C14: 7 | D14: 8
A15: молоко сгущенное | C15: 20 | D15: 20
A16: сухари | C16: 5 | D16: 6
A18: Кофейный напиток с молоком | B18: 414 | C18: 180 | D18: 200 | E18: 2.52 | F18: 2.8 | G18: 2.59 | H18: 2.87 | I18: 13.68 | J18: 15.2 | K18: 87.14 | L18: 96.82 | M18: 1.17 | N18: 1.75
A19: кофейный напиток | C19: 2 | D19: 3
A20: сахарный песок | C20: 11 | D20: 12
A21: молоко | C21: 90 | D21: 100
A22: вода | C22: 108 | D22: 120
A24: Бутерброд с маслом и сыром | B24: 3 | C24: 55 | D24: 70 | E24: 5.8 | F24: 7.89 | G24: 6.67 | H24: 8.1 | I24: 19.65 | J24: 24.64 | K24: 143.62 | L24: 182.71 | M24: 0.02 | N24: 0.04
A25: батон | C25: 40 | D25: 50
A26: масло сливочное | C26: 5 | D26: 5
A27: сыр | C27: 10 | D27: 15
A28: Итого: | E28: =E24+E18+E6 -> 16.72 | F28: =F24+F18+F6 -> 20.77 | G28: 15.26 | H28: 17.47 | I28: 50.95 | J28: 58.86 | K28: 384.91 | L28: 467.53 | M28: 1.91 | N28: 2.56
A30: 2-ой завтрак
A31: Сок | B31: 418 | C31: 150 | D31: 150 | E31: 0.75 | F31: 0.75 | G31: 0 | H31: 0 | I31: 8.99 | J31: 8.99 | K31: 61.56 | L31: 61.56 | M31: 3.24 | N31: 3.24
A32: Фрукт | C32: 85 | D32: 85 | E32: 1.2 | F32: 1.2 | G32: 0.12 | H32: 0.12 | I32: 5.18 | J32: 5.18 | K32: 21.77 | L32: 21.77 | M32: 0.1 | N32: 0.1
A33: Итого: | E33: =E32+E31 -> 1.95 | F33: =F32+F31 -> 1.95 | G33: 0.12 | H33: 0.12 | I33: 14.17 | J33: 14.17 | K33: 83.33 | L33: 83.33 | M33: 3.34 | N33: 3.34
A35: Обед
A36: Салат из белокочанной капусты | B36: 21 | C36: 40 | D36: 60 | E36: 0.57 | F36: 0.86 | G36: 1.81 | H36: 2.74 | I36: 3.86 | J36: 5.23 | K36: 37.54 | L36: 49.18 | M36: 13.21 | N36: 19.8
A37: капуста | C37: 40/32 | D37: 60/48
A38: морковь | C38: 7/6 | D38: 10/8
A39: масло растительное | C39: 4 | D39: 6
A40: сахар | C40: 2 | D40: 3
A41: соль | C41: 1 | D41: 1
A43: Суп крестьянский на мкб со сметаной | B43: 98 | C43: 180/10/7 | D43: 200/12/8 | E43: 5.32 | F43: 6.95 | G43: 4.26 | H43: 5.75 | I43: 16.28 | J43: 17.14 | K43: 128.52 | L43: 143.52 | M43: 11.87 | N43: 12.02
A44: Мясо говядины на кости | C44: 22/16 | D44: 25/19
A45: Картофель | C45: 100/60 | D45: 111/67
A46: Морковь | C46: 11/9 | D46: 12/10
A47: Лук репчатый | C47: 17/14 | D47: 18/15
A48: крупа перловая | C48: 9 | D48: 10
A49: Масло растительное | C49: 2 | D49: 3
A50: Вода | C50: 135 | D50: 150
A51: Соль | C51: 1 | D51: 1
A52: Сметана | C52: 7 | D52: 8
A54: Макароны отварные со сливочным маслом | B54: 335 | C54: 100 | D54: 150 | E54: 3.32 | F54: 4.25 | G54: 3.69 | H54: 5.11 | I54: 24.46 | J54: 29.45 | K54: 120.4 | L54: 180.6 | M54: 0 | N54: 0
A55: макаронные изделия | C55: 35 | D55: 53
A56: масло сливочное | C56: 5 | D56: 7
A57: соль | C57: 1 | D57: 1
A59: Кнели куриные | B59: 329 | C59: 60 | D59: 75 | E59: 5.54 | F59: 8.1 | G59: 3.72 | H59: 4.65 | I59: 3.85 | J59: 4.81 | K59: 117.5 | L59: 146.87 | M59: 3.62 | N59: 4.53
A60: курица | C60: 80/57 | D60: 100/71
A61: крупа рисовая | C61: 5 | D61: 6
A62: вода | C62: 6 | D62: 7
A63: масло сливочное | C63: 2 | D63: 3
A64: лук репчатый | C64: 7/6 | D64: 9/7
A65: соль | C65: 1 | D65: 1
A66: масло растительное | C66: 1 | D66: 1
A68: Хлеб ржано -пшеничный | C68: 30 | D68: 50 | E68: 1.91 | F68: 3.19 | G68: 0.24 | H68: 0.4 | I68: 12.43 | J68: 20.71 | K68: 52.61 | L68: 87.68 | M68: 0 | N68: 0
A70: Компот из сухофруктов | B70: 394 | C70: 120 | D70: 150 | E70: 0.03 | F70: 0.04 | I70: 11.32 | J70: 13.4 | K70: 45.42 | L70: 53.79 | M70: 0.024 | N70: 0.03
A71: Смесь компотная | C71: 12 | D71: 15
A72: сахарный песок | C72: 7 | D72: 9
A73: вода | C73: 124 | D73: 157
A75: Итого: | E75: =E70+E68+E59+E54+E43+E36 -> 16.69 | F75: 23.39 | G75: 13.72 | H75: 18.65 | I75: 72.2 | J75: 90.74 | K75: 501.99 | L75: 661.64 | M75: 28.724 | N75: 36.38
A77: Полдник
A78: Кисломолочный напиток | B78: 420 | C78: 200 | D78: 200 | E78: 5.2 | F78: 5.2 | G78: 5 | H78: 5 | I78: 8 | J78: 8 | K78: 88.2 | L78: 88.2 | M78: 0 | N78: 0
A79: Кондитерское изделие | C79: 25 | D79: 50 | E79: 0.64 | F79: 1.29 | G79: 0.56 | H79: 1.13 | I79: 13.24 | J79: 26.48 | K79: 69.26 | L79: 138.52 | M79: 0.13 | N79: 0.26
A80: Итого: | E80: =E79+E78 -> 5.84 | F80: 6.49 | G80: 5.56 | H80: 6.13 | I80: 21.24 | J80: 34.48 | K80: 157.46 | L80: 226.72 | M80: 0.13 | N80: 0.26
A81: Итого за 1 день: | E81: =E80+E75+E33+E28 -> 41.2 | F81: 52.6 | G81: 34.66 | H81: 42.37 | I81: 158.56 | J81: 198.25 | K81: 1127.69 | L81: 1439.22 | M81: 34.104 | N81: 42.54

Sheet Меню раскладка 3 день

Sheet Меню раскладка 4 день

Sheet Меню раскладка 5 день

Sheet Меню раскладка 6 день

Sheet Меню раскладка 7 день

Sheet Меню раскладка 8 день

Sheet Меню раскладка 9 день

Sheet Меню раскладка 10 дней

Sheet Ведомость питания
